[Event "LAT-chW 2020"]
[Site "Riga"]
[Date "2020.08.25"]
[Round "3.2"]
[White "Krumina, Linda"]
[Black "Gorozhankina, Julia"]
[Result "1-0"]
[ECO "D85"]
[WhiteElo "2065"]
[BlackElo "2035"]
[Annotator "ChessBase"]
[PlyCount "65"]
[EventDate "2020.08.24"]
[EventType "swiss"]
[EventCountry "LAT"]
[SourceTitle "playchess.com"]
[Source "ChessBase"]
[SourceQuality "1"]
[TimeControl "5400+30"]

1. d4 {[%emt 0:00:00]} Nf6 {[%emt 0:00:00]} 2. c4 {[%emt 0:00:00]} g6 {[%emt 0:00:00]} 3. Nc3 {[%emt 0:00:00]} d5 {[%emt 0:00:00]} 4. cxd5 {[%emt 0:00:00]} Nxd5 {[%emt 0:00:00]} 5. Bd2 {[%emt 0:00:03]} Bg7 {[%emt 0:00:00]} 6. e4 {[%emt 0:00:07]} Nxc3 {[%emt 0:02:42]} 7. Bxc3 {[%emt 0:00:07]} c5 {[%emt 0:00:07]} 8. d5 {[%emt 0:03:00]} Bxc3+ {[%emt 0:00:08]} 9. bxc3 {[%emt 0:00:02]} Qa5 {[%emt 0:03:54]} 10. Qd2 {[%emt 0:02:53]} Nd7 {[%emt 0:01:31]} 11. Rc1 {[%emt 0:08:11]} b5 {[%emt 0:08:28]} 12. Nf3 {[%emt 0:01:27]} f6 {[%emt 0:10:01]} 13. h4 {[%emt 0:02:01]} Rb8 {[%emt 0:10:18]} 14. e5 {[%emt 0:16:20]} Qc7 {[%emt 0:14:42]} 15. d6 {[%emt 0:03:29]} exd6 {[%emt 0:07:41]} 16. exd6 {[%emt 0:00:06]} Qd8 {[%emt 0:00:10]} 17. h5 {[%emt 0:03:29]} g5 {[%emt 0:08:42]} 18. Bd3 {[%emt 0:06:07]} c4 {[%emt 0:06:01]} 19. Bf5 {[%emt 0:08:18]} Nb6 {[%emt 0:06:38]} 20. Bxc8 {[%emt 0:02:05]} Rxc8 {[%emt 0:03:28]} 21. O-O {[%emt 0:01:59]} O-O {[%emt 0:01:23]} 22. Rcd1 {[%emt 0:01:13]} Rc6 {[%emt 0:03:29]} 23. Rfe1 {[%emt 0:02:36]} Re8 {[%emt 0:02:49]} 24. Rxe8+ {[%emt 0:08:23]} Qxe8 {[%emt 0:00:04]} 25. Nxg5 {[%emt 0:04:12]} fxg5 {[%emt 0:06:39]} 26. Qxg5+ {[%emt 0:00:21]} Kf8 {[%emt 0:00:30]} 27. Rd4 {[%emt 0:04:17]} Qe1+ {[%emt 0:01:30]} 28. Kh2 {[%emt 0:00:07]} Ke8 {[%emt 0:00:30]} 29. Qg8+ {[%emt 0:02:57]} Kd7 {[%emt 0:00:04]} 30. Qxh7+ {[%emt 0:02:09]} Kd8 {[%emt 0:00:04]} 31. Rg4 {[%emt 0:02:10]} Qe5+ {[%emt 0:00:38]} 32. f4 {[%emt 0:00:15]} Qxd6 {[%emt 0:00:08]} 33. Rg8+ {[%emt 0:00:10]} 1-0

[Event "LAT-chW 2020"]
[Site "Riga"]
[Date "2020.08.25"]
[Round "3.3"]
[White "Golsta, Ramona"]
[Black "Maklakova, Nellija"]
[Result "1-0"]
[ECO "D02"]
[WhiteElo "1708"]
[BlackElo "1833"]
[Annotator "NA"]
[PlyCount "89"]
[EventDate "2020.08.24"]
[EventType "swiss"]
[EventCountry "LAT"]
[SourceTitle "playchess.com"]
[Source "ChessBase"]
[SourceQuality "1"]
[TimeControl "5400+30"]

1. d4 {[%emt 0:00:00]} e6 {[%emt 0:01:06]} 2. Nf3 {[%emt 0:00:00]} d5 {[%emt 0:00:43]} 3. Bf4 {[%emt 0:00:06]} Bd6 {[%emt 0:02:06]} 4. e3 {[%emt 0:01:20]} Nf6 {[%emt 0:01:25]} 5. Bd3 {[%emt 0:01:25]} b6 {[%emt 0:04:50]} 6. O-O {[%emt 0:01:55]} Bb7 {[%emt 0:02:52]} 7. Ne5 {[%emt 0:01:29]} Nbd7 {[%emt 0:02:03]} 8. Nd2 {[%emt 0:00:48]} Nf8 {[%emt 0:00:50]} 9. Bb5+ {[%emt 0:01:32]} N6d7 {[%emt 0:04:27]} 10. Qh5 {[%emt 0:03:49]} Bxe5 {[%emt 0:15:00]} 11. Bxe5 {[%emt 0:01:05]} Rg8 {[%emt 0:01:13]} 12. Nf3 {[%emt 0:03:16]} c6 {[%emt 0:01:44]} 13. Bd3 {[%emt 0:03:15]} g6 {[%emt 0:05:26]} 14. Qh3 {[%emt 0:01:58]} f6 {[%emt 0:00:19]} 15. Bd6 {[%emt 0:01:36]} c5 {[%emt 0:02:09]} 16. dxc5 {[%emt 0:02:47]} bxc5 {[%emt 0:01:06]} 17. Bb5 {[%emt 0:01:12]} Kf7 {[%emt 0:06:30]} 18. Bxd7 {[%emt 0:06:19]} Nxd7 {[%emt 0:00:48]} 19. Qxh7+ {[%emt 0:00:49]} Rg7 {[%emt 0:00:10]} 20. Qh4 {[%emt 0:02:10]} Qb6 {[%emt 0:06:12]} 21. Bg3 {[%emt 0:03:41]} Rag8 {[%emt 0:03:32]} 22. Qa4 {[%emt 0:01:57]} Bc6 {[%emt 0:02:50]} 23. Qb3 {[%emt 0:00:21]} Qa6 {[%emt 0:01:06]} 24. c4 {[%emt 0:04:00]} dxc4 {[%emt 0:01:16]} 25. Qc3 {[%emt 0:00:28]} Nb6 {[%emt 0:04:03]} 26. Rac1 {[%emt 0:00:36]} Nd5 {[%emt 0:03:06]} 27. Qd2 {[%emt 0:02:18]} Bb5 {[%emt 0:03:36]} 28. e4 {[%emt 0:03:17]} Nb4 {[%emt 0:02:18]} 29. e5 {[%emt 0:17:41]} f5 {[%emt 0:04:13]} 30. Ng5+ {[%emt 0:01:30]} Ke8 {[%emt 0:00:21]} 31. Rfd1 {[%emt 0:03:18]} Rd7 {[%emt 0:01:01]} 32. Qe3 {[%emt 0:00:47]} Nd3 {[%emt 0:00:59]} 33. Qf3 {[%emt 0:01:41]} Bc6 {[%emt 0:00:57]} 34. Qe3 {[%emt 0:00:19]} Nxc1 {[%emt 0:00:38]} 35. Rxc1 {[%emt 0:00:22]} Qa4 {[%emt 0:04:35]} 36. b3 {[%emt 0:01:27]} Qxa2 {[%emt 0:00:35]} 37. Qxc5 {[%emt 0:00:51]} Qxb3 {[%emt 0:00:55]} 38. Qxc6 {[%emt 0:00:38]} c3 {[%emt 0:02:09]} 39. h3 {[%emt 0:03:14]} Rgg7 {[%emt 0:02:04]} 40. Rxc3 {[%emt 0:02:21]} Qd1+ {[%emt 0:00:46]} 41. Kh2 {[%emt 0:00:02]} Rge7 {[%emt 0:00:14]} 42. Nxe6 {[%emt 0:01:40]} Qd2 {[%emt 0:00:53]} 43. Nc7+ {[%emt 0:02:14]} Kf8 {[%emt 0:02:03]} 44. Qf6+ {[%emt 0:00:24]} Rf7 {[%emt 0:00:17]} 45. Ne6+ {[%emt 0:00:16]} 1-0

[Event "LAT-chW 2020"]
[Site "Riga"]
[Date "2020.08.25"]
[Round "3.4"]
[White "Osobskaja, Zinaida"]
[Black "Jansone, Melanija Luize"]
[Result "1-0"]
[ECO "E70"]
[WhiteElo "1682"]
[BlackElo "1303"]
[Annotator "NA"]
[PlyCount "84"]
[EventDate "2020.08.24"]
[EventType "swiss"]
[EventCountry "LAT"]
[SourceTitle "playchess.com"]
[Source "ChessBase"]
[SourceQuality "1"]
[TimeControl "5400+30"]

1. e4 {[%emt 0:00:00]} d6 {[%emt 0:00:00]} 2. d4 {[%emt 0:00:00]} Nf6 {[%emt 0:00:00]} 3. Bd3 {[%emt 0:00:04]} g6 {[%emt 0:00:06]} 4. c4 {[%emt 0:00:49]} Bg7 {[%emt 0:00:42]} 5. Ne2 {[%emt 0:01:18]} O-O {[%emt 0:02:15]} 6. Nbc3 {[%emt 0:00:14]} e5 {[%emt 0:04:02]} 7. d5 {[%emt 0:00:55]} Nbd7 {[%emt 0:04:35]} 8. h3 {[%emt 0:02:53]} c6 {[%emt 0:06:09]} 9. Be3 {[%emt 0:00:42]} Nb6 {[%emt 0:08:54]} 10. a4 {[%emt 0:01:05]} a5 {[%emt 0:01:13]} 11. Qd2 {[%emt 0:01:12]} cxd5 {[%emt 0:06:08]} 12. cxd5 {[%emt 0:00:22]} Bd7 {[%emt 0:02:06]} 13. b3 {[%emt 0:01:19]} Rc8 {[%emt 0:01:49]} 14. Rc1 {[%emt 0:00:46]} Ne8 {[%emt 0:06:01]} 15. g4 {[%emt 0:02:41]} f6 {[%emt 0:07:15]} 16. Ng3 {[%emt 0:00:34]} Na8 {[%emt 0:01:29]} 17. f3 {[%emt 0:00:36]} Nac7 {[%emt 0:00:25]} 18. Bb6 {[%emt 0:01:08]} Qe7 {[%emt 0:01:00]} 19. Bxa5 {[%emt 0:00:25]} Na6 {[%emt 0:00:47]} 20. Bxa6 {[%emt 0:02:52]} bxa6 {[%emt 0:00:32]} 21. O-O {[%emt 0:00:23]} f5 {[%emt 0:03:10]} 22. Kg2 {[%emt 0:03:19]} Qh4 {[%emt 0:01:51]} 23. Qe1 {[%emt 0:00:55]} Kh8 {[%emt 0:02:14]} 24. Nge2 {[%emt 0:01:19]} Qg5 {[%emt 0:00:55]} 25. Na2 {[%emt 0:06:04]} Nf6 {[%emt 0:04:42]} 26. Bd2 {[%emt 0:00:39]} f4 {[%emt 0:01:46]} 27. h4 {[%emt 0:02:23]} Qh6 {[%emt 0:00:09]} 28. g5 {[%emt 0:00:38]} Qh5 {[%emt 0:00:07]} 29. gxf6 {[%emt 0:00:34]} Bxf6 {[%emt 0:00:07]} 30. Rh1 {[%emt 0:00:56]} g5 {[%emt 0:01:49]} 31. hxg5 {[%emt 0:00:25]} Qxg5+ {[%emt 0:00:02]} 32. Kf1 {[%emt 0:01:01]} Rg8 {[%emt 0:01:20]} 33. Qf2 {[%emt 0:00:32]} Rxc1+ {[%emt 0:02:52]} 34. Naxc1 {[%emt 0:00:38]} Rd8 {[%emt 0:01:11]} 35. Qh2 {[%emt 0:00:27]} Qg7 {[%emt 0:00:40]} 36. Qh6 {[%emt 0:01:01]} Qf7 {[%emt 0:00:32]} 37. Be1 {[%emt 0:01:36]} Rg8 {[%emt 0:01:35]} 38. Bh4 {[%emt 0:00:52]} Bg7 {[%emt 0:02:05]} 39. Qxd6 {[%emt 0:00:30]} Qh5 {[%emt 0:03:07]} 40. Kf2 {[%emt 0:00:35]} Qf7 {[%emt 0:03:06]} 41. Nd3 {[%emt 0:00:39]} Re8 {[%emt 0:01:15]} 42. Nc5 {[%emt 0:01:16]} Bc8 {[%emt 0:00:59]} 1-0

[Event "LAT-chW 2020"]
[Site "Riga"]
[Date "2020.08.26"]
[Round "4.1"]
[White "Rogule, Laura"]
[Black "Krumina, Linda"]
[Result "1/2-1/2"]
[ECO "B06"]
[WhiteElo "2297"]
[BlackElo "2065"]
[Annotator "ChessBase"]
[PlyCount "56"]
[EventDate "2020.08.24"]
[EventType "swiss"]
[EventCountry "LAT"]
[SourceTitle "playchess.com"]
[Source "ChessBase"]
[SourceQuality "1"]
[TimeControl "5400+30"]

1. Nf3 {[%emt 0:00:00]} g6 {[%emt 0:00:00]} 2. e4 {[%emt 0:07:41]} Bg7 {[%emt 0:00:12]} 3. d4 {[%emt 0:01:07]} d6 {[%emt 0:02:30]} 4. Nc3 {[%emt 0:06:10]} Nd7 {[%emt 0:05:11]} 5. Bc4 {[%emt 0:10:04]} Nb6 {[%emt 0:10:16]} 6. Bb3 {[%emt 0:00:00]} c6 {[%emt 0:11:29]} 7. Bf4 {[%emt 0:04:23]} Nf6 {[%emt 0:05:52]} 8. Qd2 {[%emt 0:07:01]} O-O {[%emt 0:02:24]} 9. Bh6 {[%emt 0:06:52]} d5 {[%emt 0:06:11]} 10. Bxg7 {[%emt 0:16:17]} Kxg7 {[%emt 0:00:06]} 11. Qe2 {[%emt 0:01:04]} Bg4 {[%emt 0:07:43]} 12. O-O-O {[%emt 0:01:28]} Qc7 {[%emt 0:04:18]} 13. h3 {[%emt 0:07:06]} Qf4+ {[%emt 0:06:41]} 14. Kb1 {[%emt 0:00:52]} Bxf3 {[%emt 0:01:30]} 15. gxf3 {[%emt 0:00:05]} e6 {[%emt 0:02:25]} 16. Rhg1 {[%emt 0:04:49]} h5 {[%emt 0:03:01]} 17. Rg2 {[%emt 0:02:57]} a5 {[%emt 0:06:05]} 18. a4 {[%emt 0:01:07]} Rad8 {[%emt 0:02:46]} 19. e5 {[%emt 0:06:50]} Ng8 {[%emt 0:05:02]} 20. Qd3 {[%emt 0:03:25]} Ne7 {[%emt 0:01:00]} 21. Ne2 {[%emt 0:02:31]} Qh4 {[%emt 0:01:17]} 22. Rdg1 {[%emt 0:01:22]} Nf5 {[%emt 0:04:02]} 23. f4 {[%emt 0:01:26]} Qe7 {[%emt 0:02:53]} 24. c3 {[%emt 0:00:58]} Rh8 {[%emt 0:02:49]} 25. Rg5 {[%emt 0:01:19]} h4 {[%emt 0:01:05]} 26. Nc1 {[%emt 0:02:10]} Qd7 {[%emt 0:02:54]} 27. Ne2 {[%emt 0:02:22]} Rh6 {[%emt 0:01:16]} 28. Ka2 {[%emt 0:00:47]} Rc8 {[%emt 0:00:20]} 1/2-1/2

[Event "LAT-chW 2020"]
[Site "Riga"]
[Date "2020.08.26"]
[Round "4.2"]
[White "Golsta, Ramona"]
[Black "Golsta, Madara"]
[Result "0-1"]
[ECO "A45"]
[WhiteElo "1708"]
[BlackElo "1889"]
[Annotator "NA"]
[PlyCount "74"]
[EventDate "2020.08.24"]
[EventType "swiss"]
[EventCountry "LAT"]
[SourceTitle "playchess.com"]
[Source "ChessBase"]
[SourceQuality "1"]
[TimeControl "5400+30"]

1. d4 {[%emt 0:00:00]} Nf6 {[%emt 0:00:17]} 2. Bf4 {[%emt 0:00:00]} c5 {[%emt 0:00:01]} 3. e3 {[%emt 0:00:34]} g6 {[%emt 0:00:33]} 4. Nc3 {[%emt 0:00:48]} cxd4 {[%emt 0:02:53]} 5. exd4 {[%emt 0:00:19]} Bg7 {[%emt 0:00:12]} 6. h4 {[%emt 0:00:41]} d6 {[%emt 0:05:36]} 7. Be2 {[%emt 0:00:58]} h5 {[%emt 0:02:44]} 8. f3 {[%emt 0:02:34]} Nc6 {[%emt 0:04:02]} 9. Nh3 {[%emt 0:01:26]} Bxh3 {[%emt 0:07:51]} 10. Rxh3 {[%emt 0:01:01]} Qb6 {[%emt 0:00:21]} 11. d5 {[%emt 0:13:26]} Qxb2 {[%emt 0:09:26]} 12. Nb5 {[%emt 0:05:18]} Nxd5 {[%emt 0:02:10]} 13. Rb1 {[%emt 0:04:23]} Qxa2 {[%emt 0:00:43]} 14. Bc4 {[%emt 0:11:57]} Qxc4 {[%emt 0:02:13]} 15. Qxd5 {[%emt 0:02:54]} Qxd5 {[%emt 0:01:23]} 16. Nc7+ {[%emt 0:00:08]} Kd7 {[%emt 0:00:19]} 17. Nxd5 {[%emt 0:00:02]} Rhb8 {[%emt 0:01:06]} 18. g4 {[%emt 0:00:10]} e6 {[%emt 0:00:43]} 19. Ne3 {[%emt 0:00:20]} b5 {[%emt 0:01:59]} 20. gxh5 {[%emt 0:00:24]} gxh5 {[%emt 0:00:08]} 21. Rg3 {[%emt 0:00:10]} Bf6 {[%emt 0:00:20]} 22. Bg5 {[%emt 0:00:02]} Bc3+ {[%emt 0:00:23]} 23. Ke2 {[%emt 0:00:21]} a5 {[%emt 0:00:34]} 24. Kd3 {[%emt 0:00:59]} Bh8 {[%emt 0:00:35]} 25. c3 {[%emt 0:00:29]} b4 {[%emt 0:00:33]} 26. cxb4 {[%emt 0:00:24]} Nxb4+ {[%emt 0:00:15]} 27. Kd2 {[%emt 0:00:37]} a4 {[%emt 0:00:09]} 28. Nc4 {[%emt 0:00:23]} a3 {[%emt 0:00:32]} 29. Rgg1 {[%emt 0:05:33]} a2 {[%emt 0:00:17]} 30. Ra1 {[%emt 0:00:07]} Bxa1 {[%emt 0:00:07]} 31. Rxa1 {[%emt 0:00:01]} Nd5 {[%emt 0:00:42]} 32. Kc2 {[%emt 0:00:37]} f6 {[%emt 0:01:02]} 33. Bc1 {[%emt 0:00:17]} Rb1 {[%emt 0:00:19]} 34. Rxb1 {[%emt 0:00:23]} axb1=Q+ {[%emt 0:00:06]} 35. Kxb1 {[%emt 0:00:05]} Ra4 {[%emt 0:00:14]} 36. Nd2 {[%emt 0:00:41]} Rxh4 {[%emt 0:00:08]} 37. Ba3 {[%emt 0:00:08]} Rf4 {[%emt 0:00:46]} 0-1

[Event "LAT-chW 2020"]
[Site "Riga"]
[Date "2020.08.26"]
[Round "4.3"]
[White "Gorozhankina, Julia"]
[Black "Petrovska, Arina"]
[Result "1/2-1/2"]
[ECO "D11"]
[WhiteElo "2035"]
[BlackElo "1637"]
[Annotator "ChessBase"]
[PlyCount "51"]
[EventDate "2020.08.24"]
[EventType "swiss"]
[EventCountry "LAT"]
[SourceTitle "playchess.com"]
[Source "ChessBase"]
[SourceQuality "1"]
[TimeControl "5400+30"]

1. Nf3 {[%emt 0:00:00]} d5 {[%emt 0:00:05]} 2. d4 {[%emt 0:00:00]} Bf5 {[%emt 0:01:23]} 3. g3 {[%emt 0:00:34]} c6 {[%emt 0:00:28]} 4. Bg2 {[%emt 0:00:22]} Nf6 {[%emt 0:00:35]} 5. O-O {[%emt 0:01:44]} e6 {[%emt 0:00:15]} 6. b3 {[%emt 0:03:26]} Bd6 {[%emt 0:00:24]} 7. c4 {[%emt 0:01:46]} O-O {[%emt 0:00:24]} 8. Nbd2 {[%emt 0:01:43]} Nbd7 {[%emt 0:00:19]} 9. Bb2 {[%emt 0:01:10]} Ne4 {[%emt 0:03:02]} 10. a3 {[%emt 0:07:22]} Ndf6 {[%emt 0:01:44]} 11. c5 {[%emt 0:04:39]} Bc7 {[%emt 0:00:51]} 12. b4 {[%emt 0:01:27]} Nxd2 {[%emt 0:07:56]} 13. Nxd2 {[%emt 0:00:53]} Qe7 {[%emt 0:02:51]} 14. Nf3 {[%emt 0:09:05]} Ne4 {[%emt 0:09:07]} 15. e3 {[%emt 0:03:00]} Bg4 {[%emt 0:01:41]} 16. Qd3 {[%emt 0:04:34]} Bxf3 {[%emt 0:10:34]} 17. Bxf3 {[%emt 0:00:05]} f5 {[%emt 0:00:08]} 18. Bg2 {[%emt 0:04:58]} g5 {[%emt 0:12:58]} 19. f4 {[%emt 0:12:48]} g4 {[%emt 0:03:18]} 20. Bxe4 {[%emt 0:08:13]} dxe4 {[%emt 0:01:11]} 21. Qc3 {[%emt 0:01:55]} Qf6 {[%emt 0:05:56]} 22. Rf2 {[%emt 0:05:52]} a6 {[%emt 0:02:25]} 23. Qb3 {[%emt 0:02:42]} Qe7 {[%emt 0:00:46]} 24. Qc3 {[%emt 0:04:22]} Kf7 {[%emt 0:02:20]} 25. Rg2 {[%emt 0:03:37]} Rg8 {[%emt 0:02:42]} 26. Qb3 {[%emt 0:01:47]} 1/2-1/2

[Event "LAT-chW 2020"]
[Site "Riga"]
[Date "2020.08.26"]
[Round "4.4"]
[White "Maklakova, Nellija"]
[Black "Kazmerika, Anna"]
[Result "0-1"]
[ECO "C67"]
[WhiteElo "1833"]
[BlackElo "1615"]
[Annotator "NA"]
[PlyCount "104"]
[EventDate "2020.08.24"]
[EventType "swiss"]
[EventCountry "LAT"]
[SourceTitle "playchess.com"]
[Source "ChessBase"]
[SourceQuality "1"]
[TimeControl "5400+30"]

1. e4 {[%emt 0:00:00]} e5 {[%emt 0:00:00]} 2. Nf3 {[%emt 0:00:20]} Nc6 {[%emt 0:00:00]} 3. Bb5 {[%emt 0:00:07]} Nf6 {[%emt 0:00:00]} 4. O-O {[%emt 0:00:08]} Nxe4 {[%emt 0:00:09]} 5. Bxc6 {[%emt 0:02:48]} dxc6 {[%emt 0:06:32]} 6. Re1 {[%emt 0:02:14]} Nd6 {[%emt 0:02:26]} 7. Nxe5 {[%emt 0:04:52]} Be7 {[%emt 0:00:29]} 8. Nc3 {[%emt 0:00:47]} O-O {[%emt 0:00:45]} 9. d4 {[%emt 0:03:38]} Be6 {[%emt 0:14:31]} 10. Ne2 {[%emt 0:07:05]} Nf5 {[%emt 0:14:11]} 11. c4 {[%emt 0:06:41]} Bb4 {[%emt 0:11:31]} 12. Rf1 {[%emt 0:06:03]} f6 {[%emt 0:10:29]} 13. Nd3 {[%emt 0:11:36]} Be7 {[%emt 0:01:48]} 14. d5 {[%emt 0:00:20]} cxd5 {[%emt 0:01:49]} 15. Ndf4 {[%emt 0:00:15]} Bf7 {[%emt 0:01:53]} 16. cxd5 {[%emt 0:01:35]} Qc8 {[%emt 0:00:53]} 17. g4 {[%emt 0:06:45]} Nd6 {[%emt 0:10:46]} 18. Nd4 {[%emt 0:01:32]} c6 {[%emt 0:02:59]} 19. dxc6 {[%emt 0:03:11]} bxc6 {[%emt 0:00:08]} 20. Qf3 {[%emt 0:00:20]} c5 {[%emt 0:01:14]} 21. Nc6 {[%emt 0:01:00]} Re8 {[%emt 0:03:54]} 22. Bd2 {[%emt 0:06:27]} Nc4 {[%emt 0:02:58]} 23. Bc3 {[%emt 0:01:43]} Bd6 {[%emt 0:00:52]} 24. Nd5 {[%emt 0:01:49]} Ne5 {[%emt 0:07:03]} 25. Nxe5 {[%emt 0:03:40]} Bxe5 {[%emt 0:00:05]} 26. Bxe5 {[%emt 0:03:22]} Rxe5 {[%emt 0:00:04]} 27. Ne3 {[%emt 0:00:29]} Rb8 {[%emt 0:00:58]} 28. b3 {[%emt 0:00:50]} Rb4 {[%emt 0:01:55]} 29. h3 {[%emt 0:00:50]} h5 {[%emt 0:00:36]} 30. Rfd1 {[%emt 0:04:28]} hxg4 {[%emt 0:00:56]} 31. hxg4 {[%emt 0:00:31]} Be6 {[%emt 0:00:35]} 32. Rd6 {[%emt 0:03:58]} Bxg4 {[%emt 0:00:35]} 33. Qc6 {[%emt 0:00:40]} Qxc6 {[%emt 0:00:34]} 34. Rxc6 {[%emt 0:00:02]} Be2 {[%emt 0:00:26]} 35. Rc8+ {[%emt 0:01:08]} Kh7 {[%emt 0:00:31]} 36. Nc4 {[%emt 0:00:05]} Rg5+ {[%emt 0:00:29]} 37. Kh2 {[%emt 0:00:01]} Bxc4 {[%emt 0:00:39]} 38. bxc4 {[%emt 0:00:13]} Rxc4 {[%emt 0:00:06]} 39. Kh3 {[%emt 0:00:01]} Rcg4 {[%emt 0:00:32]} 40. Rxc5 {[%emt 0:00:15]} Rxc5 {[%emt 0:02:07]} 41. Kxg4 {[%emt 0:00:02]} Rc2 {[%emt 0:00:04]} 42. f4 {[%emt 0:00:20]} g6 {[%emt 0:01:08]} 43. a4 {[%emt 0:00:08]} Rc4 {[%emt 0:00:28]} 44. Kf3 {[%emt 0:01:54]} a5 {[%emt 0:00:17]} 45. Ke3 {[%emt 0:00:28]} Kg7 {[%emt 0:00:22]} 46. Ra2 {[%emt 0:00:24]} Kf7 {[%emt 0:00:19]} 47. Ra1 {[%emt 0:00:37]} Ke6 {[%emt 0:00:08]} 48. Ra2 {[%emt 0:00:04]} Kf5 {[%emt 0:00:32]} 49. Rd2 {[%emt 0:00:39]} Rxa4 {[%emt 0:00:18]} 50. Rd5+ {[%emt 0:00:02]} Kg4 {[%emt 0:00:40]} 51. Rd6 {[%emt 0:00:06]} Rxf4 {[%emt 0:00:23]} 52. Ra6 {[%emt 0:00:02]} a4 {[%emt 0:00:14]} 0-1

[Event "LAT-chW 2020"]
[Site "Riga"]
[Date "2020.08.27"]
[Round "5.1"]
[White "Krumina, Linda"]
[Black "Golsta, Madara"]
[Result "1/2-1/2"]
[ECO "D93"]
[WhiteElo "2065"]
[BlackElo "1889"]
[Annotator "ChessBase"]
[PlyCount "59"]
[EventDate "2020.08.24"]
[EventType "swiss"]
[EventCountry "LAT"]
[SourceTitle "playchess.com"]
[Source "ChessBase"]
[SourceQuality "1"]
[TimeControl "5400+30"]

1. d4 {[%emt 0:00:00]} Nf6 {[%emt 0:00:00]} 2. c4 {[%emt 0:00:00]} g6 {[%emt 0:00:00]} 3. Nf3 {[%emt 0:00:27]} Bg7 {[%emt 0:00:00]} 4. Nc3 {[%emt 0:00:57]} d5 {[%emt 0:00:14]} 5. Bf4 {[%emt 0:04:16]} O-O {[%emt 0:07:11]} 6. e3 {[%emt 0:00:53]} c5 {[%emt 0:05:24]} 7. Be2 {[%emt 0:13:13]} dxc4 {[%emt 0:01:31]} 8. Bxc4 {[%emt 0:04:40]} Nc6 {[%emt 0:04:25]} 9. Ne5 {[%emt 0:10:00]} Na5 {[%emt 0:15:51]} 10. Be2 {[%emt 0:15:58]} cxd4 {[%emt 0:06:41]} 11. exd4 {[%emt 0:02:15]} Nd5 {[%emt 0:11:35]} 12. Bg3 {[%emt 0:09:06]} Be6 {[%emt 0:02:47]} 13. Ne4 {[%emt 0:08:11]} Rc8 {[%emt 0:05:04]} 14. O-O {[%emt 0:01:02]} Bf5 {[%emt 0:06:56]} 15. Nc5 {[%emt 0:01:35]} b6 {[%emt 0:01:37]} 16. Ncd3 {[%emt 0:00:40]} Nf6 {[%emt 0:04:43]} 17. Qa4 {[%emt 0:10:36]} Ne4 {[%emt 0:03:19]} 18. Rfc1 {[%emt 0:01:44]} Nxg3 {[%emt 0:01:21]} 19. hxg3 {[%emt 0:00:08]} Qd6 {[%emt 0:05:26]} 20. Rxc8 {[%emt 0:01:00]} Rxc8 {[%emt 0:00:18]} 21. Rd1 {[%emt 0:01:43]} f6 {[%emt 0:02:32]} 22. Nf3 {[%emt 0:00:23]} Bd7 {[%emt 0:00:17]} 23. Qb4 {[%emt 0:00:49]} Qxb4 {[%emt 0:02:47]} 24. Nxb4 {[%emt 0:00:02]} Nc4 {[%emt 0:00:48]} 25. b3 {[%emt 0:01:47]} Nd6 {[%emt 0:00:07]} 26. Ba6 {[%emt 0:00:23]} Rc3 {[%emt 0:02:58]} 27. Nd5 {[%emt 0:05:29]} Rc2 {[%emt 0:00:07]} 28. Nb4 {[%emt 0:00:52]} Rc3 {[%emt 0:00:08]} 29. Nd5 {[%emt 0:00:13]} Rc2 {[%emt 0:00:06]} 30. Nb4 {[%emt 0:00:43]} 1/2-1/2